bitfinex-derivatives/quotes_BTCF0:USTF0_20250809
["timestamp","ask_amount","ask_price","bid_price","bid_amount"]
[1754755192730,0.3762572,116920.0,116910.0,0.8863497]
[1754755192930,0.45175299,116920.0,116910.0,0.8863497]
[1754755193924,0.40413299,116920.0,116910.0,0.8863497]
[1754755194229,0.45175299,116920.0,116910.0,0.8863497]
[1754755194935,0.45175299,116920.0,116910.0,0.55430671]
[1754755195135,0.45175299,116920.0,116910.0,0.8863497]
[1754755196834,0.11971,116920.0,116910.0,0.8863497]
[1754755197025,0.03534,116920.0,116910.0,1.21839269]
[1754755197226,0.03534,116920.0,116910.0,0.8863497]
[1754755197426,0.08296,116920.0,116910.0,0.8863497]
[1754755198627,0.04957,116920.0,116910.0,0.8863497]
[1754755198932,0.03534,116920.0,116910.0,0.8863497]
[1754755199736,0.02545,116920.0,116910.0,0.8863497]
[1754755200638,0.03534,116920.0,116910.0,0.5451292]
[1754755201542,0.08632,116920.0,116910.0,0.5451292]
[1754755203243,0.08632,116920.0,116910.0,1.3329292]
[1754755212150,0.3608,116940.0,116930.0,0.1088352]
[1754755212356,0.40807,116940.0,116930.0,1.14321205]
[1754755212758,0.42161,116940.0,116930.0,1.14321205]
[1754755214158,0.42261,116940.0,116930.0,1.14321205]
[1754755214459,0.44588,116940.0,116930.0,1.14321205]
[1754755215553,0.44588,116940.0,116930.0,0.9894852]
[1754755217866,0.08508,116940.0,116930.0,0.9894852]
[1754755220154,0.02262,116950.0,116940.0,0.3049925]
[1754755220357,0.03164,116950.0,116940.0,0.68417264]
[1754755220558,0.19031813,116950.0,116940.0,0.68417264]
[1754755220959,0.09234552,116950.0,116940.0,0.70783264]
[1754755221159,0.12398552,116950.0,116940.0,0.70783264]
[1754755221365,0.12698552,116950.0,116940.0,0.70883264]
[1754755221561,0.19515873,116950.0,116940.0,0.70883264]
[1754755222055,0.29545679,116960.0,116950.0,0.2051606]
[1754755222259,0.02262,116960.0,116950.0,1.37777272]
[1754755222466,0.00303263,116960.0,116950.0,1.37777272]
[1754755222867,0.00303263,116960.0,116950.0,1.44893272]
[1754755223466,0.01603263,116960.0,116950.0,1.2498675]
[1754755223666,0.01387816,116960.0,116950.0,1.2498675]
[1754755224065,0.01387816,116960.0,116950.0,1.44990261]
[1754755224266,0.01387816,116960.0,116950.0,1.81070261]
[1754755224865,0.03165616,116960.0,116950.0,1.81070261]
[1754755225660,0.02159616,116960.0,116950.0,1.81070261]
[1754755227168,0.01884316,116960.0,116950.0,1.81070261]
[1754755227674,0.8953689,116980.0,116970.0,0.109136]
[1754755227675,0.8099,116980.0,116970.0,0.109136]
[1754755227969,0.8099,116980.0,116970.0,0.26295477]
[1754755228173,0.980876,116980.0,116970.0,0.26295477]
[1754755229067,0.980876,116980.0,116970.0,0.33134152]
[1754755229576,0.983876,116980.0,116970.0,0.33134152]
[1754755229964,0.989876,116980.0,116970.0,0.33134152]
[1754755231068,1.0753446,116980.0,116970.0,0.33134152]
[1754755231269,0.989876,116980.0,116970.0,0.33134152]
[1754755233073,0.989876,116980.0,116970.0,0.37985152]
[1754755233374,1.776836,116980.0,116970.0,0.42735152]
[1754755233765,1.776836,116980.0,116970.0,0.62738663]
[1754755234373,1.776836,116980.0,116970.0,0.47356786]
[1754755235069,1.777616,116980.0,116970.0,0.27353275]
[1754755240272,0.006,116980.0,116970.0,0.25972275]
[1754755240475,0.6172114,117030.0,117010.0,0.3652665]
[1754755240673,0.5317726,117030.0,117020.0,0.0854394]
[1754755240979,1.4894846,117030.0,117020.0,0.0854394]
[1754755241182,0.531812,117030.0,117020.0,0.0854394]
[1754755241478,1.4040041,117030.0,117020.0,0.1089294]
[1754755241676,1.4140041,117030.0,117020.0,0.1089294]
[1754755242180,1.4140043,117030.0,117020.0,0.26260584]
[1754755242481,1.4140043,117030.0,117020.0,0.26360584]
[1754755243576,1.7210043,117030.0,117020.0,0.001]
[1754755243979,0.0854396,117020.0,117010.0,0.88505638]
[1754755244283,0.0854396,117020.0,117010.0,0.90854638]
[1754755244582,0.25635961,117020.0,117010.0,0.90854638]
[1754755244880,0.25635961,117020.0,117010.0,0.63204662]
[1754755245283,0.26135961,117020.0,117010.0,0.47871875]
[1754755246385,0.26135961,117020.0,117010.0,0.57603875]
[1754755246885,0.26135971,117020.0,117010.0,0.57603875]
[1754755247283,0.17592001,117020.0,117010.0,0.57603875]
[1754755248584,0.18192001,117020.0,117010.0,0.57603875]
[1754755248889,0.18192001,117020.0,117010.0,0.21523875]
[1754755250581,0.011,117020.0,117010.0,0.21523875]
[1754755250788,0.18192001,117020.0,117010.0,0.21523875]
[1754755251685,0.18192001,117020.0,117010.0,0.65707934]
[1754755251984,0.18192001,117020.0,117010.0,1.01787934]
[1754755253587,0.011,117020.0,117010.0,1.01787934]
[1754755253789,0.18192001,117020.0,117010.0,1.01787934]
[1754755254687,0.011,117020.0,117010.0,1.01787934]
[1754755263495,0.011,117020.0,117010.0,0.65707934]
[1754755265804,0.011,117020.0,117010.0,1.01787934]
[1754755266197,0.011,117020.0,117010.0,0.57603875]
[1754755266399,0.011,117020.0,117010.0,0.65707934]
[1754755266594,0.011,117020.0,117010.0,0.21523875]
[1754755266800,0.011,117020.0,117010.0,0.87794207]
[1754755268006,0.4601,117020.0,117010.0,0.87794207]
[1754755268904,0.4601,117020.0,117010.0,1.23874207]
[1754755269096,0.4601,117020.0,117010.0,1.57009373]
[1754755269302,0.4601,117020.0,117010.0,1.20929373]
[1754755269503,0.4601,117020.0,117010.0,1.57009373]
[1754755270404,0.4601,117020.0,117010.0,1.7234216]
[1754755270597,0.4601,117020.0,117010.0,1.39206994]
[1754755272906,0.4601,117020.0,117010.0,1.23874207]
[1754755273209,0.4601,117020.0,117010.0,0.87794207]
[1754755273412,0.462,117020.0,117010.0,0.87794207]
[1754755273903,0.462,117020.0,117010.0,1.23874207]
[1754755274108,0.462,117020.0,117010.0,0.21523875]
[1754755274303,0.462,117020.0,117010.0,0.87794207]
[1754755274810,0.4601,117020.0,117010.0,1.23874207]
[1754755275198,0.4601,117020.0,117010.0,1.43877718]
[1754755275710,0.4601,117020.0,117010.0,1.07797718]
[1754755276104,0.4601,117020.0,117010.0,1.43877718]
[1754755277907,0.462,117020.0,117010.0,1.43877718]
[1754755278612,0.46504,117020.0,117010.0,0.77607386]
[1754755278914,0.46504,117020.0,117010.0,1.43877718]
[1754755279215,0.01594,117020.0,117010.0,1.43877718]
[1754755281518,0.011,117020.0,117010.0,1.43877718]
[1754755281818,0.011,117020.0,117010.0,1.07797718]
[1754755282219,0.011,117020.0,117010.0,1.08797718]
[1754755282414,0.011,117020.0,117010.0,1.44877718]
[1754755282721,0.4601,117020.0,117010.0,1.44877718]
[1754755284722,0.4601,117020.0,117010.0,1.24874207]
[1754755285922,0.4601,117020.0,117010.0,0.58603875]
[1754755286221,0.4601,117020.0,117010.0,1.24874207]
[1754755286916,1.15529166,117020.0,117010.0,0.71047629]
[1754755287123,0.82584,117020.0,117010.0,0.71047629]
[1754755287421,0.82584,117020.0,117010.0,0.9105114]
[1754755287821,0.82584,117020.0,117010.0,1.08797718]
[1754755288620,0.82584,117020.0,117010.0,0.88794207]
[1754755289322,0.82584,117020.0,117010.0,0.22523875]
[1754755289522,0.82584,117020.0,117010.0,0.88794207]
[1754755292120,0.82584,117020.0,117010.0,1.08797718]
[1754755295120,0.82584,117020.0,117010.0,0.42527386]
[1754755295318,0.9112798,117020.0,117010.0,1.08797718]
[1754755295825,0.82584,117020.0,117010.0,1.08797718]
[1754755296221,0.9112798,117020.0,117010.0,0.75662552]
[1754755296427,1.24263146,117020.0,117010.0,0.89733807]
[1754755296626,1.41355147,117020.0,117010.0,0.89733807]
[1754755296830,1.08219981,117020.0,117010.0,0.91393807]
[1754755297225,1.08219981,117020.0,117010.0,0.76019552]
[1754755300131,0.63309981,117020.0,117010.0,0.91390734]
[1754755300430,0.63309981,117020.0,117010.0,0.71387223]
[1754755301732,0.63309981,117020.0,117010.0,0.56016041]
[1754755302627,0.4621798,117020.0,117010.0,0.56016041]
[1754755306731,0.96445147,117020.0,117010.0,0.12791915]
[1754755307233,0.96445147,117020.0,117010.0,0.61298263]
[1754755307636,0.96445147,117020.0,117010.0,0.28163097]
[1754755307831,0.96445147,117020.0,117010.0,0.61298263]
[1754755308037,0.96445147,117020.0,117010.0,0.37382371]
[1754755308333,0.96445147,117020.0,117010.0,0.45927081]
[1754755308540,0.96445147,117020.0,117010.0,0.12791915]
[1754755308837,0.96445147,117020.0,117010.0,0.37382371]
[1754755309237,0.96445147,117020.0,117010.0,0.45927081]
[1754755309440,0.63309981,117020.0,117010.0,0.45927081]
[1754755309640,0.96445147,117020.0,117010.0,0.45927081]
[1754755310132,1.29580313,117020.0,117010.0,0.01898205]
[1754755310332,1.29680313,117020.0,117010.0,0.01]
[1754755310539,1.29680313,117020.0,117010.0,0.00900554]
[1754755310943,1.29680313,117020.0,117010.0,0.03373554]
[1754755315437,1.29680313,117020.0,117010.0,0.4852544]
[1754755315642,1.29680313,117020.0,117010.0,0.5342844]
[1754755315936,1.29680313,117020.0,117010.0,0.5508844]
[1754755319854,1.29680313,117020.0,117010.0,0.4654372]
[1754755320250,1.29680313,117020.0,117010.0,0.5508842]
[1754755320757,1.29680313,117020.0,117010.0,0.03373554]
[1754755321051,1.29680313,117020.0,117010.0,0.00900554]
[1754755321253,0.101207,117010.0,117000.0,0.13291451]
[1754755321455,0.101207,117010.0,116990.0,0.67087278]
[1754755321456,0.1043943,117000.0,116990.0,0.67087278]
[1754755321669,1.14920762,117000.0,116990.0,0.33952112]
[1754755321856,1.14920762,117000.0,116990.0,0.63615278]
[1754755322163,0.81785596,117000.0,116990.0,0.67087278]
[1754755322463,0.81785596,117000.0,116990.0,0.67980343]
[1754755322663,0.4865043,117000.0,116990.0,0.63686782]
[1754755323360,0.4691943,117000.0,116990.0,0.21946995]
[1754755323565,0.4691943,117000.0,116990.0,0.66159782]
[1754755324457,0.4691943,117000.0,116990.0,0.21946995]
[1754755324657,0.4731943,117000.0,116990.0,0.66159782]
[1754755330674,0.4731943,117000.0,116990.0,0.81530964]
[1754755331060,0.4542543,117000.0,116990.0,1.15730964]
[1754755331266,1.15524,117000.0,116990.0,1.15730964]
[1754755331572,1.15524,117000.0,116990.0,1.00359782]
[1754755331767,0.79444,117000.0,116990.0,1.00359782]
[1754755333767,1.2406944,117000.0,116990.0,1.00359782]
[1754755334262,1.2406944,117000.0,116990.0,1.20363293]
[1754755335683,1.15524,117000.0,116990.0,1.20363293]
[1754755336075,0.79444,117000.0,116990.0,1.20363293]
[1754755336775,1.15524,117000.0,116990.0,1.00359782]
[1754755338570,0.79444,117000.0,116990.0,1.00359782]
[1754755338772,1.15524,117000.0,116990.0,1.00359782]
[1754755339168,0.8798943,117000.0,116990.0,0.76150506]
[1754755339375,1.2413743,117000.0,116990.0,1.20363293]
[1754755339575,1.2586743,117000.0,116990.0,1.20363293]
[1754755339976,1.2799843,117000.0,116990.0,1.20363293]
[1754755340278,1.2586743,117000.0,116990.0,1.20363293]
[1754755341678,1.17322,117000.0,116990.0,1.20363293]
[1754755342480,1.17322,117000.0,116990.0,0.76150506]
[1754755342674,1.17322,117000.0,116990.0,1.20363293]
[1754755342980,1.2586744,117000.0,116990.0,1.20363293]
[1754755343473,1.2799844,117000.0,116990.0,1.20257293]
[1754755343870,1.2799844,117000.0,116990.0,0.91424114]
[1754755344073,1.2799844,117000.0,116990.0,0.71420603]
[1754755344276,1.2799844,117000.0,116990.0,1.1563339]
[1754755345277,1.72211227,117000.0,116990.0,0.35666603]
[1754755345581,1.72211227,117000.0,116990.0,0.37089603]
[1754755345770,1.2799844,117000.0,116990.0,0.37089603]
[1754755348284,1.2799844,117000.0,116990.0,0.8130239]
[1754755348981,1.2799844,117000.0,116990.0,0.37089603]
[1754755349586,1.72211227,117000.0,116990.0,0.16272673]
[1754755349776,1.72211227,117000.0,116990.0,0.24818833]
[1754755350081,1.72211227,117000.0,116990.0,0.27114833]
[1754755350386,1.72211227,117000.0,116990.0,0.2711438]
[1754755350580,1.72211227,117000.0,116990.0,0.1627222]
[1754755350782,2.17061227,117000.0,116990.0,0.15379155]
[1754755351472,2.23938478,117000.0,116990.0,0.15379155]
[1754755352085,0.1027617,116990.0,116980.0,0.16261553]
[1754755352283,0.92767957,116990.0,116980.0,0.16261553]
[1754755352677,1.09863957,116990.0,116980.0,0.16261553]
[1754755352879,1.09863957,116990.0,116980.0,0.00882398]
[1754755353086,0.102769,116980.0,116970.0,0.57780571]
[1754755353285,1.271959,116980.0,116970.0,0.49233031]
[1754755353687,1.271959,116980.0,116970.0,0.50153868]
[1754755353987,1.271959,116980.0,116970.0,0.94366655]
[1754755354991,1.271959,116980.0,116970.0,0.74363144]
[1754755355186,1.271959,116980.0,116970.0,0.89730177]
[1754755355990,1.271959,116980.0,116970.0,0.4551739]
[1754755356190,1.271959,116980.0,116970.0,0.89730177]
[1754755359288,1.271959,116980.0,116970.0,0.4551739]
[1754755359486,1.271959,116980.0,116970.0,0.89730177]
[1754755359886,1.271959,116980.0,116970.0,0.4551739]
[1754755360188,1.273959,116980.0,116970.0,0.89730177]
[1754755360394,1.274959,116980.0,116970.0,0.89730177]
[1754755361094,1.275959,116980.0,116970.0,0.4551739]
[1754755361285,1.275959,116980.0,116970.0,0.89730177]
[1754755361584,1.277959,116980.0,116970.0,0.89730177]
[1754755362384,1.277959,116980.0,116970.0,0.74363144]
[1754755364094,1.277959,116980.0,116970.0,0.89717906]
[1754755365680,1.277959,116980.0,116970.0,0.74363144]
[1754755373998,1.277959,116980.0,116970.0,0.8973179]
[1754755374699,1.277959,116980.0,116970.0,0.74363144]
[1754755376599,1.277959,116980.0,116970.0,0.89738331]
[1754755379103,1.277959,116980.0,116970.0,0.74363144]
[1754755379899,1.277959,116980.0,116970.0,0.30150357]
[1754755380103,1.277959,116980.0,116970.0,0.89745232]
[1754755380706,1.94138722,116980.0,116970.0,0.16302925]
[1754755380903,0.1229757,116970.0,116960.0,0.158203]
[1754755381104,1.40365192,116970.0,116950.0,0.76999211]
[1754755381407,1.91896122,116960.0,116950.0,0.92053361]
[1754755381798,1.91896122,116960.0,116950.0,0.57853361]
[1754755381994,1.58724711,116960.0,116950.0,0.57853361]
[1754755382413,1.58724711,116960.0,116950.0,0.5876425]
[1754755382706,1.58724711,116960.0,116950.0,0.38760739]
[1754755382902,1.255533,116960.0,116950.0,0.38760739]
[1754755383107,1.58724711,116960.0,116950.0,0.38760739]
[1754755383506,1.58724711,116960.0,116950.0,0.7213215]
[1754755384213,1.59024711,116960.0,116950.0,0.7193215]
[1754755384605,1.258533,116960.0,116950.0,0.38760739]
[1754755385110,1.261533,116960.0,116950.0,0.38760739]
[1754755390315,1.261533,116960.0,116950.0,0.83005338]
[1754755390517,1.15416,116960.0,116950.0,1.17205338]
[1754755390717,0.79336,116960.0,116950.0,1.17205338]
[1754755391225,0.79336,116960.0,116950.0,1.32566623]
[1754755391927,0.79336,116960.0,116950.0,1.17205338]
[1754755394530,0.8788431,116960.0,116950.0,1.17205338]
[1754755395425,0.79336,116960.0,116950.0,1.17205338]
[1754755397028,0.79336,116960.0,116950.0,1.37208849]
[1754755398334,0.79336,116960.0,116950.0,1.17205338]
[1754755398933,0.878843,116960.0,116950.0,1.17205338]
[1754755399124,0.895573,116960.0,116950.0,1.17205338]
[1754755399318,1.256373,116960.0,116950.0,1.17205338]
[1754755400122,1.277683,116960.0,116950.0,0.72960739]
[1754755402830,1.277683,116960.0,116950.0,1.17205338]
[1754755403231,1.277683,116960.0,116950.0,1.32563635]
[1754755403531,1.277683,116960.0,116950.0,0.88319036]
[1754755405731,1.277683,116960.0,116950.0,1.32563635]
[1754755407037,1.277683,116960.0,116950.0,0.98363635]
[1754755407334,1.277683,116960.0,116950.0,1.32563635]
[1754755408736,1.277683,116960.0,116950.0,0.88319036]
[1754755408933,1.277683,116960.0,116950.0,1.32563635]
[1754755412238,0.452283,116960.0,116950.0,1.32563635]
[1754755412433,1.2390831,116960.0,116950.0,1.32563635]
[1754755412739,1.2390831,116960.0,116950.0,1.17205338]
[1754755414235,1.2390831,116960.0,116950.0,1.37208849]
[1754755414541,0.7928,116960.0,116950.0,1.37208849]
[1754755415443,0.878283,116960.0,116950.0,1.37208849]
[1754755416745,0.7928,116960.0,116950.0,1.37208849]
[1754755417146,1.2390832,116960.0,116950.0,1.37208849]
[1754755417347,0.7928,116960.0,116950.0,1.37208849]
[1754755417846,1.1536,116960.0,116950.0,1.37208849]
[1754755418348,0.7928,116960.0,116950.0,1.37208849]
[1754755418847,0.7928,116960.0,116950.0,1.17205338]
[1754755419243,1.1536,116960.0,116950.0,1.17205338]
[1754755419446,1.2390831,116960.0,116950.0,1.32592243]
[1754755420346,1.1536,116960.0,116950.0,1.32592243]
[1754755421049,1.1536,116960.0,116950.0,1.17205338]
[1754755422049,0.7928,116960.0,116950.0,1.17205338]
[1754755423649,0.7928,116960.0,116950.0,1.32592454]
[1754755424246,0.80824,116960.0,116950.0,1.17205338]
[1754755424449,1.16915,116960.0,116950.0,0.72960739]
[1754755424750,1.16915,116960.0,116950.0,1.17205338]
[1754755426346,1.16915,116960.0,116950.0,1.32593341]
[1754755426649,1.19046,116960.0,116950.0,1.32593341]
[1754755426952,1.16915,116960.0,116950.0,1.32593341]
[1754755427152,1.16915,116960.0,116950.0,1.17205338]
[1754755430453,1.16915,116960.0,116950.0,0.83005338]
[1754755430650,1.16915,116960.0,116950.0,1.17205338]
[1754755432051,1.16915,116960.0,116950.0,1.37208849]
[1754755433248,1.16915,116960.0,116950.0,1.17205338]
[1754755434648,1.16915,116960.0,116950.0,1.37208849]
[1754755434852,1.2546332,116960.0,116950.0,1.37208849]
[1754755435052,1.2759432,116960.0,116950.0,1.37208849]
[1754755435957,1.2759432,116960.0,116950.0,1.35687849]
[1754755436158,1.2759432,116960.0,116950.0,0.8803325]
[1754755436354,1.2759432,116960.0,116950.0,1.35759849]
[1754755436556,1.2759432,116960.0,116950.0,1.37333849]
[1754755436759,1.2759432,116960.0,116950.0,0.9308925]
[1754755437056,1.2759432,116960.0,116950.0,0.73085739]
[1754755437257,1.2759432,116960.0,116950.0,1.17330338]
[1754755437452,1.2759432,116960.0,116950.0,0.52208789]
[1754755437655,1.71838919,116960.0,116950.0,0.52208789]
[1754755437856,1.71838919,116960.0,116950.0,0.54482789]
[1754755438365,1.71838919,116960.0,116950.0,0.58946789]
[1754755438552,1.2759432,116960.0,116950.0,0.58946789]
[1754755439760,1.2759432,116960.0,116950.0,0.62628789]
[1754755440861,1.2759432,116960.0,116950.0,0.28428789]
[1754755441062,1.2759432,116960.0,116950.0,0.62628789]
[1754755442163,1.2759432,116960.0,116950.0,0.64128789]
[1754755445768,1.2759432,116960.0,116950.0,1.08373388]
[1754755446972,1.2759432,116960.0,116950.0,1.23757842]
[1754755447361,1.2759432,116960.0,116950.0,1.23478842]
[1754755447757,1.2759432,116960.0,116950.0,1.08094388]
[1754755449775,1.2759432,116960.0,116950.0,0.63849789]
[1754755450072,1.2759432,116960.0,116950.0,1.08094388]
[1754755451377,1.2759432,116960.0,116950.0,0.73894388]
[1754755451675,1.2759432,116960.0,116950.0,1.08094388]
[1754755452478,1.2759432,116960.0,116950.0,0.63849789]
[1754755452678,1.2759432,116960.0,116950.0,1.08094388]
[1754755453379,1.2759432,116960.0,116950.0,1.23478842]
[1754755454680,1.2759432,116960.0,116950.0,0.78214556]
[1754755454879,1.2759432,116960.0,116950.0,1.12414556]
[1754755455081,1.2759432,116960.0,116950.0,0.97030102]
[1754755457883,1.2759432,116960.0,116950.0,1.12416971]
[1754755458074,1.60774633,116960.0,116950.0,1.12416971]
[1754755460477,1.60774633,116960.0,116950.0,0.97030102]
[1754755461282,1.60774633,116960.0,116950.0,1.12419021]
[1754755462882,1.60774633,116960.0,116950.0,0.97030102]
[1754755463680,1.60774633,116960.0,116950.0,1.12419021]
[1754755464386,1.60774633,116960.0,116950.0,0.97030102]
[1754755464986,1.60774633,116960.0,116950.0,0.63849789]
[1754755464987,1.2759432,116960.0,116950.0,0.63849789]
[1754755465194,1.2759432,116960.0,116950.0,0.97030102]
[1754755467092,1.60774633,116960.0,116950.0,0.97030102]
[1754755469594,1.60774633,116960.0,116950.0,0.63849789]
[1754755469795,1.60774633,116960.0,116950.0,0.97030102]
[1754755470894,1.60774633,116960.0,116950.0,1.17033613]
[1754755471096,1.2759432,116960.0,116950.0,1.17033613]
[1754755471291,1.60774633,116960.0,116950.0,1.17033613]
[1754755472091,1.2759432,116960.0,116950.0,1.17033613]
[1754755473291,1.2759432,116960.0,116950.0,0.97030102]
[1754755473596,1.60774633,116960.0,116950.0,0.97030102]
[1754755474897,1.2390832,116960.0,116950.0,0.97030102]
[1754755475495,1.2390832,116960.0,116950.0,0.63849789]
[1754755475696,1.2390832,116960.0,116950.0,0.97030102]
[1754755478193,0.3668,116960.0,116950.0,1.30210415]
[1754755478401,0.7924,116960.0,116950.0,1.30210415]
[1754755478588,1.2386832,116960.0,116950.0,1.30210415]
[1754755478787,1.1532,116960.0,116950.0,1.30210415]
[1754755478994,1.2386832,116960.0,116950.0,1.30210415]
[1754755479390,1.2386832,116960.0,116950.0,1.50213926]
[1754755480208,1.1532,116960.0,116950.0,1.50213926]
[1754755481994,1.2386832,116960.0,116950.0,1.50213926]
[1754755483600,1.2386832,116960.0,116950.0,1.17033613]
[1754755483796,1.2599932,116960.0,116950.0,1.17033613]
[1754755484206,1.2599932,116960.0,116950.0,0.97030102]
[1754755490510,1.2386832,116960.0,116950.0,0.97030102]
[1754755490710,1.2386832,116960.0,116950.0,1.30210415]
[1754755491111,1.1532,116960.0,116950.0,1.30210415]
[1754755494009,1.1532,116960.0,116950.0,1.50213926]
[1754755495011,1.1532,116960.0,116950.0,1.45598054]
[1754755495309,1.2386832,116960.0,116950.0,1.45598054]
[1754755496209,1.2599932,116960.0,116950.0,1.45598054]
[1754755496710,1.2599932,116960.0,116950.0,1.12417741]
[1754755500215,1.2599932,116960.0,116950.0,0.79237428]
[1754755500515,1.2599932,116960.0,116950.0,1.12417741]
[1754755502214,1.2599932,116960.0,116950.0,0.79237428]
[1754755502409,1.2599932,116960.0,116950.0,1.12417741]
[1754755503518,1.2589932,116960.0,116950.0,0.79237428]
[1754755503814,1.2569932,116960.0,116950.0,1.12417741]
[1754755504716,1.2569932,116960.0,116950.0,0.97030102]
[1754755505818,1.2605932,116960.0,116950.0,0.97030102]
[1754755508119,1.2759432,116960.0,116950.0,0.97030102]
[1754755508421,1.2759432,116960.0,116950.0,0.63849789]
[1754755508718,1.2759432,116960.0,116950.0,0.97030102]
[1754755510823,1.2759432,116960.0,116950.0,0.63849789]
[1754755511016,1.2759432,116960.0,116950.0,0.97030102]
[1754755512122,1.2759432,116960.0,116950.0,0.62830102]
[1754755512422,1.2759432,116960.0,116950.0,0.97030102]
[1754755516727,1.2759432,116960.0,116950.0,1.50213926]
[1754755519027,1.2759432,116960.0,116950.0,1.17033613]
[1754755520424,1.2759432,116960.0,116950.0,0.97030102]
[1754755521741,1.2759432,116960.0,116950.0,0.62830102]
[1754755522033,1.2759432,116960.0,116950.0,1.45607001]
[1754755523734,1.2759432,116960.0,116950.0,0.79246375]
[1754755523935,1.2759432,116960.0,116950.0,1.45607001]
[1754755527534,1.2759432,116960.0,116950.0,1.30210415]
[1754755527735,1.2759432,116960.0,116950.0,1.50213926]
[1754755528036,1.19046,116960.0,116950.0,1.50213926]
[1754755528437,1.2759431,116960.0,116950.0,1.50213926]
[1754755528834,1.2759431,116960.0,116950.0,1.30210415]
[1754755529536,1.19046,116960.0,116950.0,1.30210415]
[1754755530333,1.2759432,116960.0,116950.0,1.30210415]
[1754755530841,1.19046,116960.0,116950.0,0.63849789]
[1754755531039,1.2759432,116960.0,116950.0,1.30210415]
[1754755531434,0.4528832,116960.0,116950.0,0.96010415]
[1754755531640,1.1534,116960.0,116950.0,1.30210415]
[1754755531843,0.0066,116960.0,116950.0,1.63390728]
[1754755532038,0.789,116960.0,116950.0,1.63390728]
[1754755532239,1.53676,116980.0,116970.0,0.12207]
[1754755532538,2.22280828,116980.0,116970.0,1.36702676]
[1754755532739,2.22610828,116980.0,116970.0,1.36702676]
[1754755533040,1.86530828,116980.0,116970.0,1.36702676]
[1754755535242,1.89234828,116980.0,116970.0,1.36702676]
[1754755535444,1.89234828,116980.0,116970.0,1.43598107]
[1754755535637,1.89234828,116980.0,116970.0,1.28210647]
[1754755536341,1.89234828,116980.0,116970.0,1.43598107]
[1754755539743,1.89234828,116980.0,116970.0,1.28210647]
[1754755543241,0.85289,116980.0,116970.0,1.28210647]
[1754755544852,0.85289,116980.0,116970.0,0.61850021]
[1754755545043,0.85289,116980.0,116970.0,1.28210647]
[1754755550153,0.06689,116980.0,116970.0,1.28210647]
[1754755550356,0.85257,116980.0,116970.0,1.28210647]
[1754755552456,0.78898,116980.0,116970.0,1.28210647]
[1754755553157,0.78898,116980.0,116970.0,1.9747096]
[1754755553364,0.42439,117000.0,116990.0,0.2032512]
[1754755553555,1.21135,117000.0,116990.0,1.02035032]
[1754755553754,1.3221139,117000.0,116990.0,1.36235032]
[1754755553959,1.23666,117000.0,116990.0,1.36235032]
[1754755554664,1.3221139,117000.0,116990.0,1.03054719]
[1754755554864,1.3221139,117000.0,116990.0,0.69874406]
[1754755555057,1.3221139,117000.0,116990.0,0.87705433]
[1754755555963,1.3231139,117000.0,116990.0,0.87705433]
[1754755556765,1.3231139,117000.0,116990.0,0.5452512]
[1754755557066,1.3254039,117000.0,116990.0,0.87705433]
[1754755558666,1.3254039,117000.0,116990.0,1.20885746]
[1754755559467,1.3254039,117000.0,116990.0,0.5452512]
[1754755559669,1.3254039,117000.0,116990.0,0.87705433]
[1754755559863,1.3254039,117000.0,116990.0,0.83065433]
[1754755560262,1.3254039,117000.0,116990.0,0.87705433]
[1754755560658,1.3254039,117000.0,116990.0,0.79310433]
[1754755560866,1.3254039,117000.0,116990.0,0.75926433]
[1754755561069,1.65720703,117000.0,116990.0,0.78282433]
[1754755561371,1.3254039,117000.0,116990.0,0.78282433]
[1754755561668,1.65720703,117000.0,116990.0,0.75926433]
[1754755561970,1.65720703,117000.0,116990.0,0.41726433]
[1754755562563,1.65720703,117000.0,116990.0,0.44082433]
[1754755562970,1.3254039,117000.0,116990.0,0.44082433]
[1754755563272,1.65720703,117000.0,116990.0,0.44082433]
[1754755563767,1.65720703,117000.0,116990.0,0.78282433]
[1754755565171,0.1783214,116990.0,116980.0,0.62361583]
[1754755565358,0.87092453,116990.0,116980.0,0.96561583]
[1754755565565,0.87092453,116990.0,116980.0,0.7193827]
[1754755565765,0.87092453,116990.0,116980.0,1.05118583]
[1754755566680,0.87092453,116990.0,116980.0,0.343]
[1754755566866,0.87092453,116990.0,116980.0,0.76027183]
[1754755567067,0.87092453,116990.0,116980.0,0.4532587]
[1754755567267,0.87092453,116990.0,116980.0,0.69959313]
[1754755567471,0.87092453,116990.0,116980.0,0.001]
[1754755567671,0.87092453,116990.0,116980.0,0.33280313]
[1754755567868,0.0854686,116980.0,116970.0,0.39902721]
[1754755568068,1.65884173,116980.0,116970.0,0.81488744]
[1754755568269,1.65884173,116980.0,116970.0,0.90036344]
[1754755568469,1.3270386,116980.0,116970.0,0.90036344]
[1754755568675,1.65884173,116980.0,116970.0,0.91608344]
[1754755568975,1.65884173,116980.0,116970.0,0.94922344]
[1754755569566,1.65884173,116980.0,116970.0,0.61842031]
[1754755569763,1.65884173,116980.0,116970.0,0.95022344]
[1754755570081,1.65884173,116980.0,116970.0,0.61842031]
[1754755570279,1.3270386,116980.0,116970.0,0.95022344]
[1754755570470,1.65884173,116980.0,116970.0,0.95022344]
[1754755570776,1.3270386,116980.0,116970.0,1.06070636]
[1754755571080,1.3270386,116980.0,116970.0,0.61842031]
[1754755571378,1.3270386,116980.0,116970.0,1.06070636]
[1754755572575,1.3270386,116980.0,116970.0,0.61842031]
[1754755572878,1.3270386,116980.0,116970.0,1.06070636]
[1754755573971,1.3270386,116980.0,116970.0,0.97513636]
[1754755574170,1.3270386,116980.0,116970.0,1.00617636]
[1754755574372,1.3270386,116980.0,116970.0,1.03931636]
[1754755577279,1.3270386,116980.0,116970.0,0.61842031]
[1754755577481,1.3270386,116980.0,116970.0,1.06070636]
[1754755579377,1.3270386,116980.0,116970.0,0.44737431]
[1754755579582,1.76932465,116980.0,116970.0,0.43674431]
[1754755579783,1.76932465,116980.0,116970.0,0.09474431]
[1754755579979,1.76932465,116980.0,116970.0,0.001]
[1754755581385,0.1780933,116960.0,116950.0,0.82885254]
[1754755581581,1.3261733,116960.0,116950.0,1.17085254]
[1754755581782,1.3301733,116960.0,116950.0,1.17085254]
[1754755583185,1.6909733,116960.0,116950.0,1.17085254]
[1754755590693,1.6909733,116960.0,116950.0,1.06035666]
[1754755591990,1.6909733,116960.0,116950.0,0.72856649]
[1754755592189,1.6909733,116960.0,116950.0,1.06035666]
[1754755595085,1.6909733,116960.0,116950.0,0.72856649]
[1754755595290,1.6909733,116960.0,116950.0,0.97486606]
[1754755599594,1.6909733,116960.0,116950.0,0.64307589]
[1754755599797,1.6909733,116960.0,116950.0,0.97486606]
[1754755601992,1.6869733,116960.0,116950.0,0.97486606]
[1754755602191,2.01876347,116960.0,116950.0,0.97486606]
[1754755606398,1.6869733,116960.0,116950.0,0.97486606]